Workbook

Sheet International MSc_Fulltime_A
A1: Last amendment: 30_03/2023 | C1: updated: 30/03/2023
A3: INTER- NATIONAL ECONOMY AND BUSINESS MSc FULLTIME | B3: Code | C3: Course name | D3: Semester | E3: 1st semester (A) | H3: 2nd semester (S) | K3: 3rd semester (A) | N3: 4th semester (S) | Q3: Credit | R3: Assessment | S3: Prerequisites
E4: Contact hours/week | G4: Credit | H4: Contact hours/week | J4: Credit | K4: Contact hours/week | M4: Credit | N4: Contact hours/week | P4: Credit
E5: Lec | F5: Sem | H5: Lec | I5: Sem | K5: Lec | L5: Sem | N5: Lec | O5: Sem | S5: Exam | T5: Course | U5: Paralell
A6: A: Economic and methodological module | B6: 20A101EN | C6: Industrial Organization | D6: A | E6: 2 | F6: 2 | G6: 5 | Q6: 5 | R6: exam
B7: 20A102EN | C7: Macroeconomics | D7: A | E7: 2 | F7: 2 | G7: 5 | Q7: 5 | R7: exam
B8: 20A103EN | C8: Economic and Social Statistics | D8: S | H8: 2 | I8: 2 | J8: 5 | Q8: 5 | R8: exam
B9: 20A119 | C9: International Political Economy | D9: A | E9: 2 | F9: 2 | G9: 5 | Q9: 5 | R9: exam
B10: 20A108EN | C10: International Economics | D10: S | H10: 2 | I10: 2 | J10: 5 | Q10: 5 | R10: exam
C11: Total | E11: =SUM(E6:E10) -> 6 | F11: 6 | G11: 15 | H11: 4 | I11: 4 | J11: 10 | Q11: =SUM(Q6:Q10) -> 25
A13: B: International economy and business basic module | B13: 23B113 | C13: Modern Management and Marketing | D13: S | H13: 2 | I13: 2 | J13: 5 | Q13: 5 | R13: exam
B14: 23B103EN | C14: International Finance | D14: S | H14: 2 | I14: 2 | J14: 5 | Q14: 5 | R14: exam
B15: 23B104EN | C15: Global Economic Trends and Centres | D15: S | H15: 2 | I15: 2 | J15: 5 | Q15: 5 | R15: exam
B16: 23B109 | C16: European Business Environment | D16: A | E16: 2 | F16: 2 | G16: 5 | Q16: 5 | R16: exam
B17: 23B110 | C17: International Accounting | D17: A | K17: 2 | L17: 2 | M17: 5 | Q17: 5 | R17: exam | T17: 23B103EN
B18: 23B111 | C18: International Financial Management | D18: A | K18: 2 | L18: 2 | M18: 5 | Q18: 5 | R18: exam | T18: 23B103EN
B19: 23B112 | C19: International Human Resource Management | D19: A | K19: 2 | L19: 2 | M19: 5 | Q19: 5 | R19: exam | T19: 23B113
C20: Total | E20: =SUM(E13:E19) -> 2 | F20: 2 | G20: 5 | H20: 6 | I20: 6 | J20: 15 | K20: 6 | L20: 6 | M20: 15 | Q20: =SUM(Q13:Q19) -> 35
A22: C: Programme-specific module (semi-optional) | C22: International Business and Management
B23: 23C128 | C23: International Strategic Management | D23: A | K23: 2 | L23: 1 | M23: 5 | Q23: 5 | R23: exam | T23: 23B113
B24: 23C127-1 | C24: Branding | D24: S | N24: 1 | O24: 1 | P24: 4 | Q24: 4 | T24: 23B113
B25: 23C110EN | C25: International Negotiations and Intercultural Communication | D25: A | E25: 1 | F25: 2 | G25: 5 | K25: 1 | L25: 2 | M25: 5 | Q25: 5 | R25: exam
B26: 23C116EN | C26: Knowledge Management | D26: S | N26: 2 | O26: 0 | P26: 4 | Q26: 4 | R26: exam | T26: 23B113
B27: 23C117 | C27: Legal Foundations of International Cooperation | D27: A | E27: 1 | F27: 0 | G27: 3 | K27: 1 | L27: 0 | M27: 3 | Q27: 3 | R27: exam
B28: 23C130 | C28: Human Rights and Business | D28: S | H28: 2 | I28: 0 | J28: 4 | N28: 2 | O28: 0 | P28: 4 | Q28: 4 | R28: exam
B29: 23C123 | C29: Research and Development in the EU | D29: S | H29: 2 | I29: 0 | J29: 4 | N29: 2 | O29: 0 | P29: 4 | Q29: 4 | R29: exam
B30: 23C119 | C30: Business writing: in-company correspondence | D30: A | E30: 2 | F30: 0 | G30: 4 | K30: 2 | L30: 0 | M30: 4 | Q30: 4 | R30: exam
B31: 23C120 | C31: Business Informatics | D31: A | E31: 2 | F31: 1 | G31: 5 | K31: 2 | L31: 1 | M31: 5 | Q31: 5 | R31: exam
B32: 23C108EN | C32: Industrial Relations and Employment Policies | D32: S | H32: 2 | I32: 0 | J32: 4 | N32: 2 | O32: 0 | P32: 4 | Q32: 4 | R32: exam
B33: 23C118 | C33: International Trade Law | D33: S | H33: 2 | I33: 0 | J33: 4 | N33: 2 | O33: 0 | P33: 4 | Q33: 4 | R33: exam
B34: 23C124 | C34: Mathematical Statistics | D34: A | E34: 2 | F34: 2 | G34: 5 | K34: 2 | L34: 2 | M34: 5 | Q34: 5 | R34: exam
B35: 23C125 | C35: e-Business | D35: A | E35: 2 | G35: 4 | K35: 2 | M35: 4 | Q35: 4 | R35: exam
B36: CKV | C36: Courses completed abroad | R36: exam
Q37: =SUM(Q23:Q35) -> 55
C38: Finance and Accounting Module
B39: 23C133 | C39: Green Finance and ESG Reporting | D39: A | K39: 2 | L39: 1 | M39: 5 | Q39: 5 | R39: exam | T39: 23B103EN
B40: 23C134 | C40: Analysis of Economic and Financial Data | D40: A | K40: 0 | L40: 2 | M40: 4 | Q40: 4 | R40: pcm | T40: 20A103EN
B41: 23C126 | C41: Business processes in SAP S/4HANA | D41: S | N41: 0 | O41: 3 | P41: 4 | Q41: 4 | R41: pcm | T41: 23B110
B42: 23C132 | C42: Risk Management in Finance | D42: S | N42: 2 | O42: 2 | P42: 5 | Q42: 5 | R42: exam | T42: 23B111
Q43: 18
C44: European Economic Studies Module
B45: 23C129 | C45: Energy in Europe | D45: A | E45: 2 | F45: 0 | G45: 4 | K45: 2 | L45: 0 | M45: 4 | Q45: 4 | R45: exam
B46: 23C121 | C46: Competitiveness in the EU | D46: A | E46: 0 | F46: 2 | G46: 4 | K46: 0 | L46: 2 | M46: 4 | Q46: 4 | R46: pcm
B47: 22B107EN | C47: European Competition, Trade and Industrial Policies | D47: S | H47: 2 | I47: 1 | J47: 5 | Q47: 5 | R47: exam | T47: 23B109
B48: 23C115EN | C48: European Economic and Monetary Union | D48: S | H48: 2 | I48: 0 | J48: 4 | Q48: 4 | R48: exam | T48: 23B109
Q49: 17
C50: Global Business Studies Module
B51: 23C103EN | C51: Global Marketing | D51: A | K51: 2 | L51: 0 | M51: 4 | Q51: 4 | R51: exam | T51: 23B113
B52: 23C131 | C52: Modern China | D52: A | K52: 2 | L52: 0 | M52: 4 | Q52: 4 | R52: pcm | T52: 23B104EN
B53: 23C113EN | C53: Services and Intellectual Properties in the Global Economy | D53: S | H53: 2 | I53: 0 | J53: 4 | N53: 2 | O53: 0 | P53: 4 | Q53: 4 | R53: exam
B54: 23C122 | C54: Internationalisation of firms | D54: S | N54: 2 | O54: 1 | P54: 5 | Q54: 5 | R54: exam | T54: 20A108EN
Q55: 17
C56: Required credits: 37 | E56: =SUM(E23:E54) -> 12 | F56: =SUM(F23:F54) -> 7 | G56: 34 | H56: 14 | I56: 1 | J56: 29 | K56: 20 | L56: 11 | M56: 56 | N56: 17 | O56: 7 | P56: 42 | Q56: =Q37+Q43+Q49+Q55 -> 107
C57: Recommended | E57: 3 | F57: 2 | G57: 9 | H57: 0 | I57: 0 | J57: 0 | K57: 6 | L57: 3 | M57: 17 | N57: 6 | O57: 3 | P57: 14
A59: D: Optional module | B59: Code | C59: Course name | D59: Semester | E59: 1st semester | H59: 2nd semester | K59: 3rd semester | N59: 4th semester | Q59: Credit | R59: Assessment | S59: Prerequisites
E60: Contact hours/week | G60: Credit | H60: Contact hours/week | J60: Credit | K60: Contact hours/week | M60: Credit | N60: Contact hours/week | P60: Credit
E61: Lec | F61: Sem | H61: Lec | I61: Sem | K61: Lec | L61: Sem | N61: Lec | O61: Sem | S61: Exam | T61: Course | U61: Paralell
B62: 23D106 | C62: Freedom, Security and Justice within the EU | D62: A | E62: 2 | F62: 0 | G62: 4 | K62: 2 | L62: 0 | M62: 4 | Q62: 4 | R62: exam
B63: 20D103 | C63: International Week | D63: S | H63: 2 | J63: 5 | N63: 2 | P63: 5 | Q63: 5 | R63: exam
B64: 23D108 | C64: English for Academic Writing | D64: S | I64: 2 | J64: 4 | O64: 2 | P64: 4 | Q64: 4 | R64: pcm
B65: 23D111 | C65: Hungarian Language and Culture for Beginners I-II.* | D65: A/S | E65: 0 | F65: 2 | G65: 2 | H65: 0 | I65: 2 | J65: 2 | Q65: 4 | R65: pcm
B66: 10B320 | C66: Geschäftskommunikations- und Präsentationstraining auf Deutsch | D66: A/S | F66: 4 | G66: 4 | I66: 4 | J66: 4 | L66: 4 | M66: 4 | O66: 4 | P66: 4 | Q66: 4 | R66: pcm | T66: Kommunikáció és készségfejlesztés német nyelven vagy B2 német nyelvismeret (nyelvvizsga nem szükséges)
B67: DSZV | C67: Courses completed abroad
C68: Required credits: 8** | E68: =SUM(E62:E66) -> 2 | F68: =SUM(F62:F66) -> 6 | G68: 10 | H68: 2 | I68: 8 | J68: 15 | K68: 2 | L68: 4 | M68: 8 | N68: 2 | O68: 6 | P68: 13 | Q68: =SUM(Q62:Q67) -> 21
C69: Recommended | E69: 0 | F69: 0 | G69: 0 | H69: 2 | I69: 0 | J69: 5 | K69: 0 | L69: 0 | M69: 0 | N69: 0 | O69: 0 | P69: 0
C70: * Compulsory for Stipendium Hungaricum scholarship holder students not yet in receipt of Hungarian language teaching
C71: ** The 8 credits of the optional module can be completed with taking up further courses form the C module
A74: Thesis module | B74: 23C501EN | C74: Thesis seminar | D74: S | O74: 4 | P74: 5 | Q74: 5 | R74: pcm
B75: 23C502EN | C75: Thesis consultation | D75: S | O75: 8 | P75: 10 | Q75: 10 | R75: pcm
O76: =SUM(O74:O75) -> 12 | P76: =SUM(P74:P75) -> 15 | Q76: =SUM(Q74:Q75) -> 15
C78: Total credits | G78: =G11+G20+G57+G69+G76 -> 29 | J78: =J11+J20+J57+J69+J76 -> 30 | M78: =M11+M20+M57+M69+M76 -> 32 | P78: =P11+P20+P57+P69+P76 -> 29 | Q78: =SUM(G78:P78) -> 120
C79: Contact hours / week | E79: =E11+E20+E57+E69+E76 -> 11 | F79: =F11+F20+F57+F69+F76 -> 10 | H79: =H11+H20+H57+H69+H76 -> 12 | I79: =I11+I20+I57+I69+I76 -> 10 | K79: =K11+K20+K57+K69+K76 -> 12 | L79: =L11+L20+L57+L69+L76 -> 9 | N79: =N11+N20+N57+N69+N76 -> 6 | O79: =O11+O20+O57+O69+O76 -> 15
C80: Contact hours / semester (lecture, seminar) | E80: =E79*15 -> 165 | F80: =F79*15 -> 150 | H80: =H79*15 -> 180 | I80: =I79*15 -> 150 | K80: =K79*15 -> 180 | L80: =L79*15 -> 135 | N80: =N79*15 -> 90 | O80: =O79*15 -> 225
C81: Contact hours / semester together | E81: =E80+F80 -> 315 | H81: =H80+I80 -> 330 | K81: =K80+L80 -> 315 | N81: =N80+O80 -> 315
C84: Programme completion and exit requirements (credits) according to Hungarian regulations
C85: Economic and methodological module (25-40 credits) | G85: credits
C86: International economy and business basic module (30-45 credits) | G86: 25
C87: Programme-specific module (30-45 credits) | G87: 35
C88: Optional module (minimum 6 credits) | G88: 37
C89: Thesis module (15 credits) | G89: 8
C90: Together (120 credits) | G90: 15
G91: =SUM(G86:G90) -> 120
B93: pcm | C93: practical course mark (five-grade)
B94: A: | C94: Autumn
B95: S: | C95: Spring

Sheet International MSc_Fulltime_S1
A1: Last amendment: 30_03/2023 | C1: updated: 30/03/2023
A3: INTER- NATIONAL ECONOMY AND BUSINESS MSc FULLTIME | B3: Code | C3: Course name | D3: Semester | E3: 1st semester (S) | H3: 2nd semester (A) | K3: 3rd semester (S) | N3: 4th semester (A) | Q3: Credit | R3: Assessment | S3: Prerequisites
E4: Contact hours/week | G4: Credit | H4: Contact hours/week | J4: Credit | K4: Contact hours/week | M4: Credit | N4: Contact hours/week | P4: Credit
E5: Lec | F5: Sem | H5: Lec | I5: Sem | K5: Lec | L5: Sem | N5: Lec | O5: Sem | S5: Exam | T5: Course | U5: Paralell
A6: A: Economic and methodological module | B6: 20A101EN | C6: Industrial Organization | D6: A | H6: 2 | I6: 2 | J6: 5 | Q6: 5 | R6: exam
B7: 20A102EN | C7: Macroeconomics | D7: A | H7: 2 | I7: 2 | J7: 5 | Q7: 5 | R7: exam
B8: 20A103EN | C8: Economic and Social Statistics | D8: S | E8: 2 | F8: 2 | G8: 5 | Q8: 5 | R8: exam
B9: 20A119 | C9: International Political Economy | D9: A | H9: 2 | I9: 2 | J9: 5 | Q9: 5 | R9: exam
B10: 20A108EN | C10: International Economics | D10: S | E10: 2 | F10: 2 | G10: 5 | Q10: 5 | R10: exam
C11: Total | E11: =SUM(E6:E10) -> 4 | F11: 4 | G11: 10 | H11: =SUM(H6:H10) -> 6 | I11: =SUM(I6:I10) -> 6 | J11: =SUM(J6:J10) -> 15 | Q11: =SUM(Q6:Q10) -> 25
A13: B: International economy and business basic module | B13: 23B113 | C13: Modern Management and Marketing | D13: S | E13: 2 | F13: 2 | G13: 5 | Q13: 5 | R13: exam
B14: 23B103EN | C14: International Finance | D14: S | E14: 2 | F14: 2 | G14: 5 | Q14: 5 | R14: exam
B15: 23B104EN | C15: Global Economic Trends and Centres | D15: S | E15: 2 | F15: 2 | G15: 5 | Q15: 5 | R15: exam
B16: 23B109 | C16: European Business Environment | D16: A | H16: 2 | I16: 2 | J16: 5 | Q16: 5 | R16: exam
B17: 23B110 | C17: International Accounting | D17: A | H17: 2 | I17: 2 | J17: 5 | Q17: 5 | R17: exam | T17: 23B103EN
B18: 23B111 | C18: International Financial Management | D18: A | H18: 2 | I18: 2 | J18: 5 | Q18: 5 | R18: exam | T18: 23B103EN
B19: 23B112 | C19: International Human Resource Management | D19: A | N19: 2 | O19: 2 | P19: 5 | Q19: 5 | R19: exam | T19: 23B113
C20: Total | E20: =SUM(E13:E19) -> 6 | F20: 6 | G20: 15 | H20: =SUM(H13:H19) -> 6 | I20: =SUM(I13:I19) -> 6 | J20: =SUM(J13:J19) -> 15 | N20: =SUM(N13:N19) -> 2 | O20: =SUM(O13:O19) -> 2 | P20: =SUM(P13:P19) -> 5 | Q20: =SUM(Q13:Q19) -> 35
A22: C: Programme-specific module (semi-optional) | C22: International Business and Management
B23: 23C128 | C23: International Strategic Management | D23: A | N23: 2 | O23: 1 | P23: 5 | Q23: 5 | R23: exam | T23: 23B113
B24: 23C127-1 | C24: Branding | D24: S | K24: 1 | L24: 1 | M24: 4 | Q24: 4 | T24: 23B113
B25: 23C110EN | C25: International Negotiations and Intercultural Communication | D25: A | H25: 1 | I25: 2 | J25: 5 | N25: 1 | O25: 2 | P25: 5 | Q25: 5 | R25: exam
B26: 23C116EN | C26: Knowledge Management | D26: S | K26: 2 | L26: 0 | M26: 4 | Q26: 4 | R26: exam | T26: 23B113
B27: 23C108EN | C27: Industrial Relations and Employment Policies | D27: S | E27: 2 | F27: 0 | G27: 4 | K27: 2 | L27: 0 | M27: 4 | Q27: 4 | R27: exam
B28: 23C117 | C28: Legal Foundations of International Cooperation | D28: A | H28: 1 | I28: 0 | J28: 3 | N28: 1 | O28: 0 | P28: 3 | Q28: 3 | R28: exam
B29: 23C118 | C29: International Trade Law | D29: S | E29: 2 | F29: 0 | G29: 4 | K29: 2 | L29: 0 | M29: 4 | Q29: 4 | R29: exam
B30: 23C130 | C30: Human Rights and Business | D30: S | E30: 2 | F30: 0 | G30: 4 | K30: 2 | L30: 0 | M30: 4 | Q30: 4 | R30: exam
B31: 23C123 | C31: Research and Development in the EU | D31: S | E31: 2 | F31: 0 | G31: 4 | K31: 2 | L31: 0 | M31: 4 | Q31: 4 | R31: exam
B32: 23C119 | C32: Business writing: in-company correspondence | D32: A | H32: 2 | I32: 0 | J32: 4 | N32: 2 | O32: 0 | P32: 4 | Q32: 4 | R32: exam
B33: 23C120 | C33: Business Informatics | D33: A | H33: 2 | I33: 1 | J33: 5 | N33: 2 | O33: 1 | P33: 5 | Q33: 5 | R33: exam
B34: 23C124 | C34: Mathematical Statistics | D34: A | H34: 2 | I34: 2 | J34: 5 | N34: 2 | O34: 2 | P34: 5 | Q34: 5 | R34: exam
B35: 23C125 | C35: e-Business | D35: A | H35: 1 | I35: 0 | J35: 4 | N35: 1 | O35: 0 | P35: 4 | Q35: 4 | R35: exam
B36: CKV | C36: Courses completed abroad | R36: exam
Q37: =SUM(Q23:Q36) -> 55
C38: Finance and Accounting Module
B39: 23C133 | C39: Green Finance and ESG Reporting | D39: A | N39: 2 | O39: 1 | P39: 5 | Q39: 5 | R39: exam | T39: 23B103EN
B40: 23C134 | C40: Analysis of Economic and Financial Data | D40: A | N40: 0 | O40: 2 | P40: 4 | Q40: 4 | R40: pcm | T40: 20A103EN
B41: 23C126 | C41: Business processes in SAP S/4HANA | D41: S | K41: 0 | L41: 3 | M41: 4 | Q41: 4 | R41: pcm | T41: 23B110
B42: 23C132 | C42: Risk Management in Finance | D42: S | K42: 2 | L42: 2 | M42: 5 | Q42: 5 | T42: 23B111
Q43: =SUM(Q38:Q42) -> 18
C44: European Economic Studies Module
B45: 23C129 | C45: Energy in Europe | D45: A | H45: 2 | I45: 0 | J45: 4 | N45: 2 | O45: 0 | P45: 4 | Q45: 4 | R45: exam
B46: 23C121 | C46: Competitiveness in the EU | D46: A | H46: 0 | I46: 2 | J46: 4 | N46: 0 | O46: 2 | P46: 4 | Q46: 4 | R46: pcm
B47: 22B107EN | C47: European Competition, Trade and Industrial Policies | D47: S | K47: 2 | L47: 1 | M47: 5 | Q47: 5 | R47: exam | T47: 23B109
B48: 23C115EN | C48: European Economic and Monetary Union | D48: S | K48: 2 | L48: 0 | M48: 4 | Q48: 4 | R48: exam | T48: 23B109
Q49: =SUM(Q45:Q48) -> 17
C50: Global Business Studies Module
B51: 23C103EN | C51: Global Marketing | D51: A | N51: 2 | O51: 0 | P51: 4 | Q51: 4 | R51: exam | T51: 23B113
B52: 23C131 | C52: Modern China | D52: A | N52: 2 | O52: 0 | P52: 4 | Q52: 4 | R52: pcm | T52: 23B104EN
B53: 23C113EN | C53: Services and Intellectual Properties in the Global Economy | D53: S | E53: 2 | F53: 0 | G53: 4 | K53: 2 | L53: 0 | M53: 4 | Q53: 4 | R53: exam
B54: 23C122 | C54: Internationalisation of firms | D54: S | K54: 2 | L54: 1 | M54: 5 | Q54: 5 | R54: exam | T54: 20A108EN
Q55: =SUM(Q51:Q54) -> 17
C56: Required credits: 37 | E56: =SUM(E23:E54) -> 10 | F56: 0 | G56: 20 | H56: 11 | I56: 7 | J56: 34 | K56: 21 | L56: 8 | M56: 51 | N56: 19 | O56: 11 | P56: =SUM(P23:P54) -> 56 | Q56: =Q37+Q43+Q49+Q55 -> 107
C57: Recommended | E57: 0 | F57: 0 | G57: 0 | H57: 0 | I57: 0 | J57: 0 | K57: 12 | L57: 7 | M57: 31 | N57: 4 | O57: 1 | P57: 9
A58: D: Optional module | B58: Code | C58: Course name | D58: Semester | E58: 2nd semester | H58: 1st semester | K58: 4th semester | N58: 3rd semester | Q58: Credit | R58: Assessment | S58: Prerequisites
E59: Contact hours/week | G59: Credit | H59: Contact hours/week | J59: Credit | K59: Contact hours/week | M59: Credit | N59: Contact hours/week | P59: Credit
E60: Lec | F60: Sem | H60: Lec | I60: Sem | K60: Lec | L60: Sem | N60: Lec | O60: Sem | S60: Exam | T60: Course | U60: Paralell
B61: 23D106 | C61: Freedom, Security and Justice within the EU | D61: A | H61: 2 | I61: 0 | J61: 4 | N61: 2 | O61: 0 | P61: 4 | Q61: 4 | R61: exam
B62: 20D103 | C62: International Week | D62: S | E62: 2 | G62: 5 | K62: 2 | M62: 5 | Q62: 5 | R62: exam
B63: 23D108 | C63: English for Academic Writing | D63: S | F63: 2 | G63: 4 | L63: 2 | M63: 4 | Q63: 4 | R63: pcm
B64: 10B320 | C64: Geschäftskommunikations- und Präsentationstraining auf Deutsch | D64: A/S | F64: 4 | G64: 4 | I64: 4 | J64: 4 | L64: 4 | M64: 4 | O64: 4 | P64: 4 | Q64: 4 | R64: pcm | T64: Kommunikáció és készségfejlesztés német nyelven vagy B2 német nyelvismeret (nyelvvizsga nem szükséges)
B65: DSZV | C65: Courses completed abroad
C66: Required credits: 8** | E66: =SUM(E61:E65) -> 2 | F66: 6 | G66: 13 | H66: 2 | I66: 4 | J66: 8 | K66: 2 | L66: 6 | M66: 13 | N66: 2 | O66: 4 | P66: =SUM(P61:P65) -> 8 | Q66: =SUM(Q61:Q65) -> 17
C67: Recommended | E67: 2 | F67: 0 | G67: 5 | H67: 0 | I67: 0 | J67: 0 | K67: 0 | L67: 0 | M67: 0 | N67: 0 | O67: 0 | P67: 0
C68: ** The 8 credits of the optional module can be completed with taking up further courses form the C module
A70: Thesis module | B70: 23C501EN | C70: Thesis seminar | D70: S | O70: 4 | P70: 5 | Q70: 5 | R70: pcm
B71: 23C502EN | C71: Thesis consultation | D71: S | O71: 8 | P71: 10 | Q71: 10 | R71: pcm
O72: =SUM(O70:O71) -> 12 | P72: =SUM(P70:P71) -> 15 | Q72: =SUM(Q70:Q71) -> 15
C74: Total credits | G74: =G11+G20+G57+G67+G72 -> 30 | J74: =J11+J20+J57+J67+J72 -> 30 | M74: =M11+M20+M57+M67+M72 -> 31 | P74: =P11+P20+P57+P67+P72 -> 29 | Q74: =SUM(E74:P74) -> 120
C75: Contact hours / week | E75: =E11+E20+E57+E67+E72 -> 12 | F75: =F11+F20+F56+F67+F72 -> 10 | H75: =H11+H20+H57+H67+H72 -> 12 | I75: =I11+I20+I57+I67+I72 -> 12 | K75: =K11+K20+K57+K67+K72 -> 12 | L75: =L11+L20+L57+L67+L72 -> 7 | N75: =N11+N20+N57+N67+N72 -> 6 | O75: =O11+O20+O57+O67+O72 -> 15
C76: Contact hours / semester (lecture, seminar) | E76: =E75*15 -> 180 | F76: =F75*15 -> 150 | H76: =H75*15 -> 180 | I76: =I75*15 -> 180 | K76: =K75*15 -> 180 | L76: =L75*15 -> 105 | N76: =N75*15 -> 90 | O76: =O75*15 -> 225
C77: Contact hours / semester together | E77: =E76+F76 -> 330 | H77: =H76+I76 -> 360 | K77: =K76+L76 -> 285 | N77: =N76+O76 -> 315
C80: Programme completion and exit requirements (credits) according to Hungarian regulations
C81: Economic and methodological module (25-40 credits) | J81: credits
C82: International economy and business basic module (30-45 credits) | J82: 25
C83: Programme-specific module (30-45 credits) | J83: 35
C84: Optional module (minimum 6 credits) | J84: 37
C85: Thesis module (15 credits) | J85: 8
C86: Together (120 credits) | J86: 15
J87: =SUM(J82:J86) -> 120
B89: pcm | C89: practical course mark (five-grade)
B90: A: | C90: Autumn
B91: S: | C91: Spring
